fUSD/lending_fUSD_20240618
["ID","MTS","AMOUNT","RATE_DAILY","PERIOD"]
[329836068,1718730635209,-257.9931819,0.00014999,2]
[329836069,1718730635219,-662644.73880794,0.00015,2]
[329836070,1718730635232,-811.05669613,0.00015,2]
[329836071,1718730635243,-11913.6004726,0.00015,2]
[329836098,1718730638484,-394.14575585,0.00015,2]
[329836100,1718730638496,-4483.45609934,0.00015,2]
[329836102,1718730638508,-31769.89228542,0.00015,2]
[329836113,1718730638819,-6794024.90732872,0.00015,2]
[329836114,1718730638830,-224311.09111293,0.00015,2]
[329836115,1718730638841,-6666.65999999,0.00015,2]
[329836116,1718730638854,-623.44199861,0.00015,2]
[329836117,1718730638865,-325.085,0.00015,2]
[329836118,1718730638877,-636.35352429,0.00015,2]
[329836119,1718730638888,-3519.55,0.00015,2]
[329836120,1718730638902,-321.89,0.00015,2]
[329836121,1718730638913,-292.04521374,0.00015,2]
[329836122,1718730638926,-949824.38447753,0.00015,2]
[329836123,1718730638938,-1138.47,0.00015,2]
[329836153,1718730640697,-950.50950092,0.000149,2]
[329836154,1718730640706,-7792.72237417,0.00015,2]
[329836155,1718730640718,-107367.58905743,0.00015,2]
[329836156,1718730641106,-11645.94005578,0.00015,2]
[329836378,1718730643586,-7120.0,0.00015,2]
[329836381,1718730643598,-2539.27246372,0.00015,2]
[329836400,1718730643770,-3782.8,0.00015,2]
[329836402,1718730643782,-27831.81145817,0.00015,2]
[329836404,1718730643794,-4380.93190315,0.00015,2]
[329836425,1718730643988,-3872.43314749,0.00015,2]
[329836473,1718730646682,-194.34452141,0.00014999,2]
[329836474,1718730646697,-508.22622501,0.00014999,2]
[329836475,1718730646712,-155.0,0.00014999,2]
[329836476,1718730646726,-625.37910293,0.00015,2]
[329836477,1718730646745,-1790.18370014,0.00015,2]
[329836478,1718730647038,-626.5530921,0.000149,2]
[329836479,1718730647053,-233.4219079,0.00015,2]
[329836517,1718730693194,-300.0,0.00013899,2]
[329836518,1718730693222,-9700.0,0.000139,2]
[329836519,1718730693732,-10000.0,0.000139,2]
[329836520,1718730694171,-1278.81533157,0.00013898,2]
[329836521,1718730694195,-8721.18466843,0.000139,2]
[329836522,1718730694715,-10000.0,0.000139,2]
[329836523,1718730695595,-10000.0,0.000139,2]
[329836524,1718730698413,-339.42355532,0.00013898,2]
[329836525,1718730698438,-9224.99600538,0.000139,2]
[329836528,1718730756906,155.0,0.000139,2]
[329836529,1718730756988,280.5804393,0.000139,2]
[329836530,1718730757010,67.6567528,0.000139,2]
[329836531,1718730762111,363.30221515,0.000139,2]
[329836532,1718730763454,948.686561,0.000139,2]
[329836533,1718730764999,8620.35447105,0.000139,2]
[329836534,1718730765022,10000.0,0.000139,2]
[329836535,1718730765046,10000.0,0.000139,2]
[329836536,1718730765068,5661.35058728,0.000139,2]
[329836537,1718730765160,1364.80333341,0.000139,2]
[329836539,1718730815728,2973.84607931,0.000139,2]
[329836540,1718730815750,10000.0,0.000139,2]
[329836541,1718730815772,10000.0,0.000139,2]
[329836542,1718730815793,3665.77461488,0.000139,2]
[329836543,1718730819118,155.0,0.000139,2]
[329836544,1718730833052,155.0,0.000139,2]
[329836545,1718730837691,552.1431344,0.000139,2]
[329836546,1718730851624,552.1431344,0.000139,2]
[329836547,1718730867779,542.53050864,0.000139,2]
[329836548,1718730920872,612.08,0.00012971,2]
[329836549,1718730984844,-523.0,0.000243,120]
[329836550,1718730984909,-628.061821,0.00024448,43]
[329836551,1718730985023,-685.0,0.00025,30]
[329836552,1718730985049,-202.25183847,0.00025,30]
[329836553,1718730985111,-1208.0,0.0002536,30]
[329836554,1718730985140,-628.061821,0.00025448,48]
[329836555,1718730985166,-628.061821,0.00025448,47]
[329836556,1718730985193,-628.061821,0.00025448,44]
[329836557,1718730985285,-154.77493975,0.00025786,60]
[329836558,1718730985311,-155.02642,0.00025935,30]
[329836559,1718730985399,-628.061821,0.00026448,51]
[329836560,1718730985425,-628.061821,0.00026448,50]
[329836561,1718730985455,-628.061821,0.00026448,49]
[329836562,1718730985542,-500.0,0.00027,30]
[329836563,1718730985571,-500.0,0.00027,30]
[329836564,1718730985595,-500.0,0.00027,30]
[329836565,1718730985619,-500.0,0.00027,30]
[329836566,1718730985645,-500.0,0.00027,30]
[329836567,1718730985670,-500.0,0.00027,30]
[329836568,1718730985695,-500.0,0.00027,30]
[329836569,1718730985720,-500.0,0.00027,30]
[329836570,1718730985744,-500.0,0.00027,30]
[329836571,1718730985776,-500.0,0.00027,30]
[329836572,1718730985799,-500.0,0.00027,30]
[329836573,1718730985822,-500.0,0.00027,30]
[329836574,1718730985845,-500.0,0.00027,30]
[329836575,1718730985868,-500.0,0.00027,30]
[329836576,1718730985891,-500.0,0.00027,30]
[329836577,1718730985914,-506.0,0.00027,30]
[329836578,1718730985936,-500.0,0.00027,30]
[329836579,1718730985959,-500.0,0.00027,30]
[329836580,1718730985982,-500.0,0.00027,30]
[329836581,1718730986010,-500.0,0.00027,30]
[329836582,1718730986034,-500.0,0.00027,30]
[329836583,1718730986058,-500.0,0.00027,30]
[329836584,1718730986081,-500.0,0.00027,30]
[329836585,1718730986104,-500.0,0.00027,30]
[329836586,1718730986127,-500.0,0.00027,30]
[329836587,1718730986150,-500.0,0.00027,30]
[329836588,1718730986174,-500.0,0.00027,30]
[329836589,1718730986196,-500.0,0.00027,30]
[329836590,1718730986218,-500.0,0.00027,30]
[329836591,1718730986241,-500.0,0.00027,30]
[329836592,1718730986269,-500.0,0.00027,30]
[329836593,1718730986292,-500.0,0.00027,30]
[329836594,1718730986315,-500.0,0.00027,30]
[329836595,1718730986338,-506.0,0.00027,30]
[329836596,1718730986361,-14098.57174995,0.00027,30]
[329836597,1718730986384,-2000.0,0.00027,120]
[329836598,1718730986423,-776.87,0.00027068,30]
[329836599,1718730986730,-150.0,0.00027278,120]
[329836600,1718730986771,-150.0,0.00027305,120]
[329836601,1718730986794,-1944.99008985,0.0002736,120]
[329836602,1718730986819,-150.0,0.00027383,120]
[329836603,1718730986842,-292.22194298,0.0002739,30]
[329836604,1718730986866,-212.69,0.00027397,30]
[329836605,1718730986899,-726.95,0.00027397,30]
[329836606,1718730986922,-726.95,0.00027397,30]
[329836607,1718730986945,-726.95,0.00027397,30]
[329836608,1718730986975,-726.95,0.00027397,30]
[329836609,1718730986999,-726.95,0.00027397,30]
[329836610,1718730987028,-726.95,0.00027397,30]
[329836611,1718730987052,-726.95,0.00027397,30]
[329836612,1718730987079,-726.95,0.00027397,30]
[329836613,1718730987105,-726.95,0.00027397,30]
[329836614,1718730987133,-726.95,0.00027397,30]
[329836615,1718730987158,-726.95,0.00027397,30]
[329836616,1718730987182,-726.95,0.00027397,30]
[329836617,1718730987207,-726.95,0.00027397,30]
[329836618,1718730987231,-726.95,0.00027397,30]
[329836619,1718730987257,-726.95,0.00027397,30]
[329836620,1718730987281,-726.95,0.00027397,30]
[329836621,1718730987306,-726.95,0.00027397,30]
[329836622,1718730987330,-726.95,0.00027397,30]
[329836623,1718730987355,-726.95,0.00027397,30]
[329836624,1718730987379,-726.95,0.00027397,30]
[329836625,1718730987403,-726.95,0.00027397,30]
[329836626,1718730987442,-2000.0,0.00027397,30]
[329836627,1718730987471,-2000.0,0.00027397,30]
[329836628,1718730987494,-2000.0,0.00027397,30]
[329836629,1718730987522,-2000.0,0.00027397,30]
[329836630,1718730987546,-2000.0,0.00027397,30]
[329836631,1718730987574,-2000.0,0.00027397,30]
[329836632,1718730987600,-1528.76978386,0.00027397,30]
[329836633,1718731010759,-628.061821,0.00027448,54]
[329836634,1718731010790,-628.061821,0.00027448,52]
[329836635,1718731010815,-628.061821,0.00027448,51]
[329836636,1718731010840,-200.0,0.00027478,120]
[329836637,1718731010863,-302.338811,0.000275,120]
[329836638,1718731010887,-212.69,0.00027534,30]
[329836639,1718731010912,-150.0,0.00027574,120]
[329836640,1718731010936,-150.0,0.0002767,120]
[329836641,1718731010959,-212.69,0.00027671,30]
[329836642,1718731010989,-726.95,0.00027671,30]
[329836643,1718731011035,-150.0,0.00027736,120]
[329836644,1718731011059,-150.0,0.00027749,120]
[329836645,1718731011082,-150.0,0.00027751,120]
[329836646,1718731011104,-200.0,0.00027794,120]
[329836647,1718731011127,-212.69,0.00027808,30]
[329836648,1718731011149,-150.0,0.00027839,120]
[329836649,1718731011173,-150.0,0.00027862,120]
[329836650,1718731011197,-212.69,0.00027945,30]
[329836651,1718731011226,-726.95,0.00027945,30]
[329836652,1718731011268,-1799.48990321,0.00028,30]
[329836653,1718731011294,-39346.8739956,0.00028,30]
[329836654,1718731011317,-1000.0,0.00028,120]
[329836655,1718731011340,-500.0,0.00028,30]
[329836656,1718731011365,-150.0,0.00028063,120]
[329836657,1718731011388,-212.69,0.00028082,30]
[329836658,1718731011411,-200.0,0.0002811,120]
[329836659,1718731011435,-212.69,0.00028219,30]
[329836660,1718731011464,-727.15719568,0.00028219,30]
[329836661,1718731011505,-150.0,0.00028231,120]
[329836662,1718731011531,-150.0,0.00028318,120]
[329836663,1718731011558,-150.0,0.00028342,120]
[329836664,1718731011580,-212.69,0.00028356,30]
[329836665,1718731011604,-150.0,0.00028357,120]
[329836666,1718731011630,-150.0,0.00028373,120]
[329836667,1718731011654,-150.0,0.00028389,120]
[329836668,1718731011678,-200.0,0.00028426,120]
[329836669,1718731011701,-150.0,0.0002844,120]
[329836670,1718731011726,-628.061821,0.00028448,57]
[329836671,1718731011750,-628.061821,0.00028448,56]
[329836672,1718731011776,-628.061821,0.00028448,55]
[329836673,1718731011804,-150.0,0.00028474,120]
[329836674,1718731011826,-212.69,0.00028493,30]
[329836675,1718731011849,-1000.0,0.00028499,120]
[329836676,1718731011872,-150.0,0.00028502,120]
[329836677,1718731011916,-150.0,0.00028581,120]
[329836678,1718731011939,-212.69,0.0002863,30]
[329836679,1718731011962,-150.0,0.00028631,120]
[329836680,1718731011985,-200.0,0.00028742,120]
[329836681,1718731012010,-150.0,0.00028766,120]
[329836682,1718731012039,-212.69,0.00028767,30]
[329836683,1718731012062,-150.0,0.00028785,120]
[329836684,1718731012089,-212.69,0.00028904,30]
[329836685,1718731012113,-150.0,0.00028993,120]
[329836686,1718731012136,-150.0,0.00028994,120]
[329836687,1718731012160,-323.99136549,0.00029,30]
[329836688,1718731012182,-1680.0,0.00029,30]
[329836689,1718731012205,-1800.0,0.00029,30]
[329836690,1718731012230,-2000.0,0.00029,30]
[329836691,1718731012252,-2002.0,0.00029,30]
[329836692,1718731012277,-889.33535474,0.00029,120]
[329836693,1718731012302,-500.0,0.00029,120]
[329836694,1718731012326,-212.69,0.00029041,30]
[329836695,1718731012349,-200.0,0.00029059,120]
[329836696,1718731012373,-150.0,0.00029086,120]
[329836697,1718731012612,-150.0,0.00029088,120]
[329836698,1718731012638,-150.0,0.00029175,120]
[329836699,1718731012662,-212.69,0.00029178,30]
[329836700,1718731012686,-150.0,0.00029276,120]
[329836701,1718731012709,-150.0,0.00029276,120]
[329836702,1718731012732,-7555.48,0.000293,31]
[329836703,1718731012755,-7555.48,0.000293,31]
[329836704,1718731012780,-7555.48,0.000293,31]
[329836705,1718731012803,-7555.48,0.000293,31]
[329836706,1718731012825,-7555.48,0.000293,31]
[329836707,1718731012849,-7555.48,0.000293,31]
[329836708,1718731012871,-7555.48,0.000293,31]
[329836709,1718731012894,-7555.48,0.000293,31]
[329836710,1718731012917,-7555.48,0.000293,31]
[329836711,1718731012941,-7555.48,0.000293,31]
[329836712,1718731012964,-7555.48,0.000293,31]
[329836713,1718731012987,-7555.48,0.000293,31]
[329836714,1718731013010,-7555.48,0.000293,31]
[329836715,1718731013038,-7555.48,0.000293,31]
[329836716,1718731013062,-7555.48,0.000293,31]
[329836717,1718731013085,-7555.48,0.000293,31]
[329836718,1718731013109,-7555.48,0.000293,31]
[329836719,1718731013132,-7555.48,0.000293,31]
[329836720,1718731013156,-7555.48,0.000293,31]
[329836721,1718731013179,-7555.48,0.000293,31]
[329836722,1718731013202,-212.69,0.00029315,30]
[329836723,1718731013226,-150.0,0.00029344,120]
[329836724,1718731013250,-200.0,0.00029375,120]
[329836725,1718731013280,-628.061821,0.00029448,58]
[329836726,1718731013304,-212.69,0.00029452,30]
[329836727,1718731013328,-150.0,0.00029464,120]
[329836728,1718731013352,-1120.792202,0.000295,30]
[329836729,1718731013375,-414.356321,0.000295,30]
[329836730,1718731013400,-150.0,0.00029538,120]
[329836731,1718731013423,-150.0,0.0002954,120]
[329836732,1718731013446,-150.0,0.00029563,120]
[329836733,1718731013471,-150.0,0.00029585,120]
[329836734,1718731013496,-212.69,0.00029589,30]
[329836735,1718731013519,-150.0,0.00029612,120]
[329836736,1718731013547,-150.0,0.00029642,120]
[329836737,1718731013571,-200.0,0.00029691,120]
[329836738,1718731013593,-1569.07980064,0.000297,120]
[329836739,1718731013617,-150.0,0.00029706,120]
[329836740,1718731013639,-212.69,0.00029726,30]
[329836741,1718731013665,-150.0,0.00029761,120]
[329836742,1718731013689,-1681.188304,0.000298,30]
[329836743,1718731013712,-621.534482,0.000298,30]
[329836744,1718731013736,-150.0,0.00029832,120]
[329836745,1718731013758,-212.69,0.00029863,30]
[329836746,1718731013783,-222.24144064,0.0002988,30]
[329836747,1718731013808,-150.0,0.00029969,120]
[329836748,1718731013831,-1145.02623773,0.00029999,30]
[329836749,1718731013854,-212.69,0.00029999,30]
[329836750,1718731013877,-1000.0,0.00029999,120]
[329836751,1718731013902,-201.95393305,0.0003,60]
[329836752,1718731013924,-654.92458581,0.0003,120]
[329836753,1718731013949,-2241.584405,0.0003,30]
[329836754,1718731013972,-906.17140832,0.0003,120]
[329836755,1718731013995,-300.0,0.0003,33]
[329836756,1718731014018,-10000.0,0.0003,30]
[329836757,1718731014044,-10000.0,0.0003,30]
[329836758,1718731014066,-828.712643,0.0003,30]
[329836759,1718731014090,-565.7,0.0003,120]
[329836760,1718731014113,-1800.0,0.0003,31]
[329836761,1718731014136,-661.48894355,0.0003,120]
[329836762,1718731014159,-332.8784464,0.0003,120]
[329836763,1718731014183,-6000.0,0.0003,30]
[329836764,1718731014212,-217.91,0.0003,120]
[329836765,1718731014236,-1000.0,0.0003,30]
[329836766,1718731014264,-1851.03248588,0.0003,120]
[329836767,1718731014290,-21460.53445285,0.0003,30]
[329836768,1718731014315,-200.0,0.00030007,120]
[329836769,1718731014340,-150.0,0.00030064,120]
[329836770,1718731014364,-212.69,0.00030136,30]
[329836771,1718731014388,-201.26325607,0.00030137,30]
[329836772,1718731026067,6083.20122077,0.00028,30]
[329836773,1718731027397,621.90349891,0.00029,30]
[329836774,1718731048078,621.90349891,0.00029,30]
[329836775,1718731185258,3765.32860768,0.00013821,2]
[329836776,1718731185279,3217.96300703,0.00013821,2]
[329836777,1718731256408,-524.0,0.00028524,30]
[329836778,1718731256433,-1000.0,0.00028524,30]
[329836779,1718731256456,-1000.0,0.00028524,30]
[329836780,1718731256480,-1000.0,0.00028524,30]
[329836781,1718731256503,-536.86727782,0.00028524,30]
[329836782,1718731256527,-229.0,0.00028524,120]
[329836783,1718731256550,-1000.0,0.00028524,30]
[329836784,1718731256583,-1000.0,0.00028524,60]
[329836785,1718731256608,-1000.0,0.00028524,30]
[329836786,1718731256631,-1000.0,0.00028524,30]
[329836787,1718731256656,-1000.0,0.00028524,60]
[329836788,1718731256680,-190.0,0.00028524,30]
[329836789,1718731256703,-1000.0,0.00028524,30]
[329836790,1718731256725,-1000.0,0.00028524,120]
[329836791,1718731256749,-1000.0,0.00028524,30]
[329836792,1718731256773,-1000.0,0.00028524,60]
[329836793,1718731256800,-190.0,0.00028524,30]
[329836794,1718731256830,-1000.0,0.00028524,60]
[329836795,1718731256854,-1000.0,0.00028524,30]
[329836796,1718731256877,-1000.0,0.00028524,60]
[329836797,1718731256901,-1000.0,0.00028524,30]
[329836798,1718731256926,-1000.0,0.00028524,30]
[329836799,1718731256949,-1000.0,0.00028524,60]
[329836800,1718731256974,-1000.0,0.00028524,30]
[329836801,1718731256998,-1000.0,0.00028524,120]
[329836802,1718731257022,-1000.0,0.00028524,120]
[329836803,1718731257046,-1000.0,0.00028524,30]
[329836804,1718731257073,-1000.0,0.00028524,30]
[329836805,1718731257096,-1000.0,0.00028524,30]
[329836806,1718731257119,-451.71737013,0.00028524,30]
[329836807,1718731257142,-1000.0,0.00028524,30]
[329836808,1718731257165,-1000.0,0.00028524,30]
[329836809,1718731257188,-1000.0,0.00028524,30]
[329836810,1718731257212,-160.0,0.00028524,30]
[329836811,1718731257234,-2000.0,0.00028524,30]
[329836812,1718731257257,-2000.0,0.00028524,30]
[329836813,1718731257280,-2000.0,0.00028524,30]
[329836814,1718731257317,-2000.0,0.00028524,30]
[329836815,1718731257344,-2000.0,0.00028524,30]
[329836816,1718731257370,-2000.0,0.00028524,30]
[329836817,1718731257395,-1694.76584846,0.00028524,30]
[329836818,1718731257420,-246.37747119,0.00028524,30]
[329836819,1718731257448,-482.15533739,0.00028524,30]
[329836820,1718731257473,-360.35104562,0.00028524,30]
[329836821,1718731257498,-832.88002834,0.00028524,30]
[329836822,1718731257522,-1055.93325981,0.00028524,30]
[329836823,1718731257546,-697.44760299,0.00028524,30]
[329836824,1718731257577,-6075.39987538,0.00028524,30]
[329836825,1718731257601,-17433.53837075,0.00028524,30]
[329836826,1718731257624,-815.80694918,0.00028524,30]
[329836827,1718731257648,-823.6099754,0.00028524,30]
[329836828,1718731257674,-658.56261234,0.00028524,30]
[329836829,1718731257698,-264.53199821,0.00028524,30]
[329836830,1718731257722,-197.0684556,0.00028524,30]
[329836831,1718731257747,-916.49959741,0.00028524,30]
[329836832,1718731257771,-332.45916474,0.00028524,30]
[329836833,1718731257796,-500.0,0.00028524,30]
[329836834,1718731257825,-843.02521621,0.00028524,30]
[329836835,1718731257850,-192.69446734,0.00028524,30]
[329836836,1718731257874,-327.88728027,0.00028524,30]
[329836837,1718731257898,-1023.55517784,0.00028524,30]
[329836838,1718731257921,-252.39142781,0.00028524,30]
[329836839,1718731257946,-1091.15090314,0.00028524,30]
[329836840,1718731257970,-285.69569259,0.00028524,30]
[329836841,1718731257998,-266.0,0.00028524,30]
[329836842,1718731258023,-1280.7109,0.00028524,30]
[329836843,1718731258053,-210.97185733,0.00028524,120]
[329836844,1718731258081,-278.34803216,0.00028524,120]
[329836845,1718731258105,-2254.31696154,0.00028524,120]
[329836846,1718731258130,-264.0,0.00028524,120]
[329836847,1718731258156,-166.28236585,0.00028524,30]
[329836848,1718731258181,-1258.0,0.00028524,30]
[329836849,1718731258206,-1588.0,0.00028524,30]
[329836850,1718731258231,-1685.0,0.00028524,30]
[329836851,1718731258256,-284.50519749,0.00028524,120]
[329836852,1718731258283,-50000.0,0.00028524,30]
[329836853,1718731258315,-50000.0,0.00028524,31]
[329836854,1718731258342,-50000.0,0.00028524,32]
[329836855,1718731258372,-50000.0,0.00028524,33]
[329836856,1718731258399,-2624.0,0.00028524,30]
[329836857,1718731258424,-156.55264145,0.00028524,30]
[329836858,1718731258449,-791020.0,0.00028524,30]
[329836859,1718731258749,-5841.16,0.00028524,120]
[329836860,1718731258777,-979.0,0.00028524,30]
[329836861,1718731258801,-1845.799999,0.00028524,30]
[329836862,1718731258829,-2200.0,0.00028524,30]
[329836863,1718731258856,-1002.399999,0.00028524,30]
[329836864,1718731258879,-200.0,0.00028524,30]
[329836865,1718731258902,-335.148518,0.00028524,30]
[329836866,1718731258926,-1000.0,0.00028524,30]
[329836867,1718731258949,-1000.0,0.00028524,30]
[329836868,1718731258974,-1000.0,0.00028524,30]
[329836869,1718731258997,-1000.0,0.00028524,30]
[329836870,1718731259021,-1000.0,0.00028524,30]
[329836871,1718731259045,-1000.0,0.00028524,30]
[329836872,1718731259073,-1000.0,0.00028524,30]
[329836873,1718731259097,-1000.0,0.00028524,30]
[329836874,1718731259119,-1000.0,0.00028524,30]
[329836875,1718731259142,-1000.0,0.00028524,30]
[329836876,1718731259166,-1000.0,0.00028524,30]
[329836877,1718731259189,-155.024745,0.00028524,30]
[329836878,1718731259212,-1000.0,0.00028524,30]
[329836879,1718731259238,-1000.0,0.00028524,30]
[329836880,1718731259263,-1000.0,0.00028524,30]
[329836881,1718731259286,-1000.0,0.00028524,30]
[329836882,1718731259311,-1000.0,0.00028524,30]
[329836883,1718731259338,-1000.0,0.00028524,30]
[329836884,1718731259361,-1000.0,0.00028524,30]
[329836885,1718731259386,-1000.0,0.00028524,30]
[329836886,1718731259410,-1000.0,0.00028524,30]
[329836887,1718731259433,-1000.0,0.00028524,30]
[329836888,1718731259457,-1000.0,0.00028524,30]
[329836889,1718731259480,-1000.0,0.00028524,30]
[329836890,1718731259503,-1000.0,0.00028524,30]
[329836891,1718731259526,-1467.136707,0.00028524,30]
[329836892,1718731269675,150.0,0.00028524,30]
[329836893,1718731326098,160.0,0.00028524,30]
[329836894,1718731347292,160.0,0.00028524,30]
[329836895,1718731366761,2000.0,0.00028524,30]
[329836896,1718731367383,2000.0,0.00028524,30]
[329836897,1718731368070,2000.0,0.00028524,30]
[329836898,1718731368701,2000.0,0.00028524,30]
[329836899,1718731368957,2000.0,0.00028524,30]
[329836900,1718731369443,2000.0,0.00028524,30]
[329836901,1718731369894,1001.6,0.00028524,30]
[329836902,1718731370310,267.73995674,0.00013805,2]
[329836903,1718731393100,158.74713839,0.000139,2]
[329836904,1718731396209,158.57633162,0.000139,2]
[329836905,1718731405240,2197.22581013,0.000139,2]
[329836906,1718731411221,258.45693959,0.000139,2]
[329836907,1718731413741,2339.83836701,0.000139,2]
[329836908,1718731415554,155.0,0.000139,2]
[329836909,1718731420493,412.39731356,0.000139,2]
[329836910,1718731427157,155.0,0.000139,2]
[329836911,1718731437947,155.0,0.000139,2]
[329836912,1718731464347,323.0,0.00028524,30]
[329836913,1718731522658,155.0,0.000139,2]
[329836914,1718731524944,158.74713839,0.000139,2]
[329836915,1718731540711,524.0,0.00028524,30]
[329836916,1718731541085,2100.0,0.00028524,30]
[329836917,1718731541241,158.57633162,0.000139,2]
[329836918,1718731543382,51.73166592,0.00012894,2]
[329836919,1718731543406,529.73833408,0.00012894,2]
[329836920,1718731551488,412.39731356,0.000139,2]
[329836923,1718731666453,190.0,0.00028524,30]
[329836924,1718731721806,1000.0,0.00028524,30]
[329836925,1718731722954,1000.0,0.00028524,30]
[329836926,1718731723840,1000.0,0.00028524,30]
[329836927,1718731724898,1000.0,0.00028524,30]
[329836928,1718731725870,1000.0,0.00028524,30]
[329836929,1718731726941,1000.0,0.00028524,30]
[329836930,1718731728012,1000.0,0.00028524,30]
[329836931,1718731729687,1000.0,0.00028524,30]
[329836932,1718731730246,1000.0,0.00028524,30]
[329836933,1718731731292,1000.0,0.00028524,30]
[329836937,1718731732276,1000.0,0.00028524,30]
[329836938,1718731732781,1000.0,0.00028524,30]
[329836939,1718731733536,1000.0,0.00028524,30]
[329836940,1718731734416,1000.0,0.00028524,30]
[329836941,1718731735056,1974.754182,0.00028524,30]
[329836960,1718731756891,409.14289488,0.000139,2]
[329836962,1718731794974,6380.9601459,0.000139,2]
[329836963,1718731795185,2267.76131158,0.000139,2]
[329836984,1718731832274,-412.39731356,0.00013898,2]
[329836985,1718731832537,-158.57633162,0.00013898,2]
[329836986,1718731832555,-555.82635483,0.00013899,2]
[329836987,1718731832566,-1641.3994553,0.00013899,2]
[329836988,1718731832576,-328.27354476,0.00013899,2]
[329836989,1718731832585,-13037.95739194,0.000139,2]
[329836990,1718731832596,-9557.84583753,0.000139,2]
[329836991,1718731832607,-4464.6722884,0.000139,2]
[329836995,1718731838110,-158.74713839,0.00013897,2]
[329836996,1718731838121,-148.65646718,0.000139,2]
[329836997,1718731838133,-365.07516333,0.000139,2]
[329836998,1718731838142,-267.03901205,0.000139,2]
[329837000,1718731838152,-204.3583909,0.000139,2]
[329837001,1718731838162,-579.03126448,0.00014,2]
[329837002,1718731838174,-1910.53956673,0.00014,2]
[329837003,1718731838183,-163.92,0.00014013,2]
[329837004,1718731838194,-444.1781774,0.0001425,2]
[329837005,1718731838204,-250.0,0.00014493,2]
[329837006,1718731838214,-440.92,0.00014669,2]
[329837007,1718731838224,-167.17,0.00014731,2]
[329837008,1718731838235,-328.13955035,0.000148,2]
[329837009,1718731838245,-960.71067279,0.00014804,2]
[329837010,1718731838255,-960.71067277,0.00014818,2]
[329837011,1718731838264,-161.26,0.00014819,2]
[329837012,1718731838275,-960.71067277,0.00014831,2]
[329837013,1718731838285,-960.71067277,0.00014845,2]
[329837014,1718731838295,-328.13955035,0.0001485,2]
[329837015,1718731838311,-960.71067277,0.00014859,2]
[329837016,1718731838320,-960.71067277,0.00014873,2]
[329837017,1718731838330,-960.71067277,0.00014886,2]
[329837018,1718731838340,-283.28614578,0.00014898,2]
[329837019,1718731838350,-155.0,0.00014898,2]
[329837020,1718731838359,-155.0,0.00014898,2]
[329837021,1718731838369,-5655.6554,0.00014898,2]
[329837022,1718731838379,-487.31411409,0.00014899,5]
[329837023,1718731838388,-111792.81101423,0.000149,2]
[329837024,1718731838397,-182.69995947,0.000149,2]
[329837025,1718731838407,-833635.02603911,0.000149,2]
[329837026,1718731838416,-377.32979399,0.000149,2]
[329837027,1718731838426,-5855.27888307,0.000149,2]
[329837028,1718731838436,-328.13955035,0.000149,2]
[329837029,1718731838446,-960.71067277,0.000149,2]
[329837030,1718731838456,-219.9,0.00014904,3]
[329837031,1718731838465,-163.92,0.00014948,2]
[329837032,1718731838475,-155.0,0.00014998,2]